Cogmind - Beta 17.1 @@@ ROGUE MODE // 2026.09.10 @ 02:46:49 Player: Ev Result: Destroyed by G-47 Trooper with Particle Gun Performance ------------- Evolutions (2) 1000 Regions Visited (3) 600 Robots Destroyed (57) 285 Value Destroyed (1283) 1283 Prototype IDs (4) 80 Alien Tech Used (0) 0 Bonus (0) 0 TOTAL SCORE: 3248 Bonus ------- None Cogmind --------- Core Integrity 0/550 Matter 235/300 Energy 100/300 System Corruption 4% Temperature Cool (11) Movement Hovering (116) Ox1 Location -8/Materials Parts ------- > --- POWER (1) -------- (None) > --- PROPULSION (3) --- Improved Hover Unit Improved Hover Unit Improved Hover Unit > --- UTILITY (4) ------ Large Battery Hardened Medium Armor Plating Hardened Medium Armor Plating > --- WEAPON (3) ------- Improved Datajack > --- INVENTORY (5) ---- High-powered Tractor Beam Peak State ------------ > --- POWER ------------ Improved Ion Engine > --- PROPULSION ------- Armored Treads Armored Treads > --- UTILITY ---------- Cooling System Weight Redist. System Hardened Medium Armor Plating Hardened Medium Armor Plating > --- WEAPON ----------- Improved Medium Laser Improved Medium Laser > --- INVENTORY -------- Improved Hover Unit Improved Hover Unit Improved Hover Unit Heavy Assault Rifle Rocket Launcher [Rating: 25] Favorites ----------- Power Ion Engine Engine Ion Engine Propulsion Armored Treads Treads Armored Treads Leg Aluminum Leg Hover Unit Improved Hover Unit Flight Unit Flight Unit Utility Hardened Medium Armor Plating Device Cooling System Storage Medium Storage Unit Protection Hardened Medium Armor Plating Weapon Improved Medium Laser Energy Gun Improved Medium Laser Energy Cannon Advanced Beam Cannon Ballistic Gun Light Assault Rifle Launcher Grenade Launcher Special Melee Weapon Improved Datajack Build | -11 -10 -9 -8 ------- Run | Yrd Mat Mat Mat Slots Evolved 4 | . . 2 2 Power . | . . . . Propulsion 1 | . . . 1 Utility 2 | . . 2 . Weapon 1 | . . . 1 Parts Attached 51 | 9 11 20 11 Power 9 | 1 3 4 1 Engine 9 | 1 3 4 1 Core . | . . . . Reactor . | . . . . Propulsion 16 | 4 2 5 5 Treads 4 | 2 . 2 . Leg 2 | 2 . . . Wheel . | . . . . Hover 4 | . 2 2 . Flight 6 | . . 1 5 Utility 15 | 2 2 8 3 Device 7 | 1 . 5 1 Storage 3 | 1 2 . . Processor . | . . . . Hackware . | . . . . Protection 5 | . . 3 2 Artifact . | . . . . Weapon 11 | 2 4 3 2 Energy Gun 6 | 2 3 1 . Energy Cannon 2 | . . 2 . Ballistic Gun 1 | . . . 1 Ballistic Cannon . | . . . . Launcher 1 | . 1 . . Special Weapon . | . . . . Impact Weapon . | . . . . Slashing Weapon . | . . . . Piercing Weapon . | . . . . Special Melee Weapon 1 | . . . 1 Unidentified Prototypes 2 | . 1 1 . Parts Lost 14 | . . 1 13 Power 2 | . . . 2 Propulsion 5 | . . 1 4 Utility 4 | . . . 4 Weapon 3 | . . . 3 Highest Loss Streak 12 | . . 1 12 To Critical Strikes . | . . . . Average Backups 5 | 3 8 4 4 Power . | . 1 . . Propulsion 2 | 1 1 2 2 Utility 1 | 1 2 . 1 Weapon 1 | 1 2 . . Tool/Special . | . . . . Unused Backups 11 | . 5 6 . Power . | . . . . Propulsion 5 | . 2 3 . Utility 2 | . 2 . . Weapon 4 | . 1 3 . Tool/Special . | . . . . Average Slot Usage (%) 90 | . 96 93 55 Engine 11 | . 14 10 4 Treads 9 | . . 13 8 Leg 5 | . 22 . . Hover 6 | . 5 7 3 Device 17 | . 11 21 9 Storage 4 | . 13 . 2 Protection 11 | . . 16 11 Energy Gun 16 | . 17 19 . Energy Cannon 2 | . . 2 9 Launcher 2 | . 10 . . Peak Build Rating 25 | 7 12 25 24 Average Rating 16 | 5 8 21 14 On Entrance 10 | . 7 12 24 Avg Prop Armor Cover (%) 3 | . . . 3 Naked Turns . | . . . . Heaviest Build 33 | 13 22 33 33 Greatest Support 46 | 40 20 46 46 Greatest Overweight (x) 3 | . 1 1 3 Average Overweight (x) . | . . . . Largest Inventory Capacity 10 | 8 10 5 5 Average Capacity 6 | 7 8 5 5 Most Carried 10 | 6 10 5 5 Average Carried 5 | 3 8 4 4 Final Capacity 8 | 8 5 5 5 Final Carried 6 | 6 5 5 1 Class Distribution -------------------- 100% | Mutant Dominant Class ---------------- Mutant | -10/Materials Mutant | -9/Materials Mutant | -8/Materials Resources | -11 -10 -9 -8 ----------- Run | Yrd Mat Mat Mat Matter Collected 965 | 290 237 373 65 Remotely . | . . . . Salvage Created 1909 | 205 374 1082 248 Parts 122 | 22 30 57 13 Haulers Intercepted 4 | . 1 3 . Recyclers Shooed 1 | . 1 . . Parts Field Recycled . | . . . . Retrieved Matter . | . . . . Parts Self-Destructed . | . . . . Prevented . | . . . . Parts Restored . | . . . . Kills | -11 -10 -9 -8 ------- Run | Yrd Mat Mat Mat Combat Hostiles Destroyed 33 | . 8 17 8 Guns 17 | . 2 15 . Cannons 10 | . . 2 8 AOE 6 | . 6 . . Classes Destroyed 10 | 3 5 1 1 Worker 4 | 2 1 1 . Builder 2 | . 1 1 . Tunneler 5 | 5 . . . Hauler 4 | . 1 3 . Recycler 5 | 1 2 2 . Watcher 4 | . 1 3 . Swarmer 9 | . 2 3 4 Grunt 19 | . 6 11 2 Duelist 1 | . . . 1 Sentry 4 | . . 3 1 Best Kill Streak 9 | 4 9 7 6 Combat Bots Only 7 | . 3 7 6 Max Kills in Single Turn 2 | 1 2 2 1 Gunslinging 1 | . . 1 . Exploded 1 | . 1 . . Melee . | . . . . Uniques/NPCs Destroyed . | . . . . Combat | -11 -10 -9 -8 -------- Run | Yrd Mat Mat Mat Hostile Shots Fired 260 | . 27 46 187 Missed 60 | . 12 10 38 Hits 200 | . 15 36 149 Melee 10 | . . . 10 Projectile 190 | . 15 36 139 Critical Strikes 9 | . 1 . 8 Damage Taken 2886 | . 214 412 2260 Core 629 | . 29 39 561 Absorbed by Shields . | . . . . Core Remaining (%) 92 | 100 88 90 . Volleys Fired 123 | 12 31 50 30 Largest 2 | 2 2 2 2 Hottest 136 | 80 112 136 136 Shots Fired 222 | 24 54 100 44 Gun 156 | 24 38 94 . Cannon 50 | . . 6 44 Launcher 16 | . 16 . . Special . | . . . . Kinetic . | . . . . Thermal 206 | 24 38 100 44 Explosive 16 | . 16 . . Electromagnetic . | . . . . Robot Hit Streak 14 | 6 6 14 6 Robot Miss Streak 4 | 2 2 2 4 Penetration Max . | . . . . Secondary Targets 5 | . . 5 . Max Gunslinging Chain 1 | . . 1 . Shots Hit Robots 133 | 13 27 66 27 Core Hits 69 | 9 20 30 10 Critical Kills . | . . . . Critical Parts Destroyed . | . . . . Critical Strikes 11 | . 1 10 . Burn 11 | . 1 10 . Melee Attacks 1 | . . . 1 Impact . | . . . . Slashing . | . . . . Piercing . | . . . . Sneak Attacks . | . . . . Combat Hostiles . | . . . . Follow-up Attacks . | . . . . Damage Inflicted 2768 | 138 870 1152 608 Guns 1504 | 138 258 1108 . Cannons 652 | . . 44 608 Explosions 612 | . 612 . . Melee . | . . . . Ramming . | . . . . Kinetic . | . . . . Thermal 2156 | 138 258 1152 608 Explosive 612 | . 612 . . Electromagnetic . | . . . . Impact . | . . . . Slashing . | . . . . Piercing . | . . . . Highest Corruption 4 | . . . 4 Average Corruption 4 | . . . 4 Corruption Purged . | . . . . Corruption Blocked . | . . . . Effects 1 | . . . 1 Message Errors 1 | . . . 1 Overload Shots . | . . . . Overflow Damage 19 | . 8 . 11 Projectiles 11 | . . . 11 Explosions 8 | . 8 . . Melee . | . . . . Knockbacks . | . . . . Impact . | . . . . Kinetic . | . . . . Secondary . | . . . . Self-Inflicted Damage 41 | . 41 . . Shots 2 | . 2 . . Rammed . | . . . . Targets Rammed . | . . . . Kicked . | . . . . Crushed . | . . . . Highest Temperature 405 | 126 345 181 405 Average Temperature 95 | 46 91 32 222 Received Heat Transfer 1074 | . 108 156 810 Effects 1 | . . . 1 Interference 1 | . . . 1 Siege Activations . | . . . . Martial Activations . | . . . . Shielding Activations . | . . . . Robots Disrupted . | . . . . Combat Hostiles . | . . . . Robots Corrupted . | . . . . Combat Hostiles . | . . . . Parts Fried . | . . . . Impact Corruptions . | . . . . Robots Melted . | . . . . Combat Hostiles . | . . . . Parts Melted 10 | . 1 9 . Heat Transferred 5274 | 325 657 3219 1073 Parts Sabotaged . | . . . . Parts Stolen . | . . . . Parts Stripped . | . . . . Power Chain Reactions . | . . . . Alert | -11 -10 -9 -8 ------- Run | Yrd Mat Mat Mat Maximum Alert Level 1 | . 1 . 1 Low Security (%) 90 | 100 99 100 13 Level 1 9 | . . . 86 Level 2 . | . . . . Level 3 . | . . . . Level 4 . | . . . . Level 5 . | . . . . High Security . | . . . . Max Security . | . . . . Peak Influence 340 | 10 192 182 340 Initial 74 | . . 70 74 Average 84 | 2 93 60 249 Influence Increases 1382 | 40 370 555 417 Destroy 0b10 Robot/C 660 | . 160 340 160 Destroy 0b10 Robot/NC 120 | 40 30 50 . Destroy Leader 146 | . 44 72 30 Successful Hack 68 | . 21 46 1 Select Force Hacks 30 | . . 30 . Disable Machine 45 | . 30 15 . Anti-Garrison Action 150 | . . . 150 Destroy Structure 73 | . 70 2 1 Lose Combat Pursuer 90 | . 15 . 75 Influence Decreases 1121 | 40 203 546 332 Entered New Map 199 | . . 97 102 Time Decay 782 | 40 203 439 100 Lost Part 140 | . . 10 130 Squads Dispatched 7 | . 2 3 2 Investigation 5 | . 2 3 . Extermination . | . . . . Reinforcement . | . . . . Assault 2 | . . . 2 Garrison . | . . . . Intercept . | . . . . Searches Triggered . | . . . . Construction Impeded . | . . . . Haulers Reinforced . | . . . . Active Scanning Responses . | . . . . Cargo Convoy Interrupts . | . . . . Stealth | -11 -10 -9 -8 --------- Run | Yrd Mat Mat Mat Distress Signals 3 | . 1 2 . Communications Jammed . | . . . . Distress Signals . | . . . . Times Spotted 62 | . 11 22 29 Peak Tracking Total 15 | . 3 6 15 Tactical Retreats 3 | . 1 . 2 Traps | -11 -10 -9 -8 ------- Run | Yrd Mat Mat Mat Traps Triggered 1 | . 1 . . Indirectly . | . . . . Trap Hack Attempts . | . . . . Triggered . | . . . . Disarmed . | . . . . Reprogrammed . | . . . . Reused . | . . . . Traps Extracted . | . . . . Installed . | . . . . Triggered . | . . . . Machines | -11 -10 -9 -8 ---------- Run | Yrd Mat Mat Mat Machines Disabled 4 | . 2 1 1 Max in Single Turn 1 | . 1 1 1 Garrison Access 1 | . . . 1 Machines Repaired . | . . . . Machines Dismantled . | . . . . Machines Sabotaged . | . . . . Overloaded Fab Kills . | . . . . Hacking | -11 -10 -9 -8 --------- Run | Yrd Mat Mat Mat Machines Accessed 13 | . 5 6 2 Terminals 9 | . 5 3 1 Fabricators . | . . . . Repair Stations . | . . . . Recycling Units 1 | . . 1 . Scanalyzers 3 | . . 2 1 Garrison Access . | . . . . Total Hacks 59 | . 18 34 7 Successful 41 | . 7 28 6 Failed 18 | . 11 6 1 Catastrophic . | . . . . Database Lockouts . | . . . . Manual 36 | . 13 17 6 Terminals 36 | . 18 13 5 Fabricators . | . . . . Repair Stations . | . . . . Recycling Units 3 | . . 3 . Scanalyzers 20 | . . 18 2 Garrison Access . | . . . . Terminal Hacks 10 | . 2 7 1 Robot Analysis 7 | . . 6 1 Prototype ID Bank 1 | . 1 . . Branch Access Points 1 | . 1 . . Alert Level 1 | . . 1 . Fabricator Hacks . | . . . . Repair Station Hacks . | . . . . Recycling Unit Hacks . | . . . . Scanalyzer 19 | . . 17 2 Insert Component 3 | . . 3 . Analyze 4 | . . 4 . Retrieve Study 12 | . . 10 2 Garrison Access Hacks . | . . . . Unauthorized Hacks 12 | . 5 4 3 Terminals 11 | . 5 3 3 Track 2 | . . 1 1 Botnet 7 | . 4 2 1 Operators 2 | . 1 . 1 Fabricators . | . . . . Repair Stations . | . . . . Recycling Units 1 | . . 1 . Tunnel 1 | . . 1 . Scanalyzers . | . . . . Garrison Access . | . . . . Data Cores Recovered . | . . . . Used . | . . . . Hacking Detections 12 | . 5 6 1 Full Trace Events 4 | . 1 3 . Feedback Events . | . . . . Feedback Blocked . | . . . . Robot Schematics Acquired . | . . . . Robots Built . | . . . . Authchips . | . . . . Time . | . . . . Total Robot Build Rating . | . . . . Part Schematics Acquired 2 | . . 2 . Parts Built . | . . . . Authchips . | . . . . Time . | . . . . Total Part Build Rating . | . . . . Part Studies Acquired 10 | . . 8 2 Parts Repaired . | . . . . Time . | . . . . Parts Recycled . | . . . . Recycled Matter . | . . . . Retrieved Matter . | . . . . Retrieved Components . | . . . . Parts Scanalyzed 3 | . . 3 . Part Schematics Acquired 2 | . . 2 . Parts Damaged . | . . . . Bothacking | -11 -10 -9 -8 ------------ Run | Yrd Mat Mat Mat Used RIF Installer . | . . . . Robots Hacked 1 | . . . 1 Non-combat . | . . . . Combat 1 | . . . 1 Robot Hacks Applied 1 | . . . 1 parse_system 1 | . . . 1 Relay Couplers Released 1 | . . . 1 Machine Destruction 1 | . . . 1 Fabnet Peak Effective % . | . . . . Robots Rewired . | . . . . Allies Hacked . | . . . . Hacks Repelled . | . . . . Allies | -11 -10 -9 -8 -------- Run | Yrd Mat Mat Mat Total Allies . | . . . . Largest Group . | . . . . Highest-Rated Group . | . . . . Highest-Rated Ally . | . . . . Total Orders . | . . . . Ally Attacks . | . . . . Total Damage . | . . . . Kills . | . . . . Allies Corrupted . | . . . . Allies Melted . | . . . . Intel | -11 -10 -9 -8 ------- Run | Yrd Mat Mat Mat Active Infowar (turns) 467 | 89 378 . . Seismic 467 | 89 378 . . Robot Analysis Total 7 | . . 6 1 Derelict Logs Recovered . | . . . . Drone Launches . | . . . . Drone Recoveries . | . . . . Exploration | -11 -10 -9 -8 ------------- Run | Yrd Mat Mat Mat Turns Passed 1968 | 155 474 1130 209 Spaces Moved 975 | 73 305 475 122 Core 17 | 6 . . 11 Treads 333 | 10 . 306 17 Legs 274 | 57 217 . . Wheels . | . . . . Hover 280 | . 88 169 23 Flight 71 | . . . 71 Fastest Speed 32 | 50 56 56 32 Average Speed 122 | 119 111 140 83 Slowest Speed 250 | 160 190 250 200 Overloaded Moves . | . . . . Propulsion Burnouts . | . . . . Robots Hopped 5 | . . . 5 Potential Cave-ins . | . . . . Cave-ins Triggered . | . . . . Exploration Rate (%) 24 | 4 45 36 12 Regions Visited 3 Branch Regions . Pre-discovered Areas 1 | . . 1 . Known Exits Taken . | . . . . Unknown Exits Taken 3 | 1 1 1 . Scrap Searched . | . . . . Spaces Dug . | . . . . Terrain Destroyed 93 | . 93 . . Melee . | . . . . Projectile . | . . . . AOE 93 | . 93 . . Terrain Rammed . | . . . . Walls Destroyed . | . . . . Machines Disabled . | . . . . Actions | -11 -10 -9 -8 --------- Run | Yrd Mat Mat Mat Total 1533 | 116 390 846 181 Wait 250 | 6 4 238 2 Move 962 | 72 304 474 112 Hop 5 | . . . 5 Pick Up 59 | 15 14 20 10 Fast Attach 19 | . 4 12 3 Attach 31 | 7 4 7 13 Detach 5 | . . 5 . Swap 21 | 2 8 10 1 Drop 57 | 2 21 30 4 Fire 123 | 12 31 50 30 Melee 1 | . . . 1 Ram . | . . . . Kick . | . . . . Crush . | . . . . Escape Stasis . | . . . . Rewire . | . . . . Trap . | . . . . Miscellaneous . | . . . . Route ------- -11/Scrapyard -10/Materials (discovered 3 exits: *Mat / *Min x2) -9/Materials (discovered 2 exits: *Mat / [*Min]) -8/Materials History --------- Turn | Location | Event 24 | -11/Scrapyard | Discovered new exit (range 16) 156 | -11/Scrapyard | Entered Materials 277 | -10/Materials | Identified exit to Mines 310 | -10/Materials | Build established: Mutant 566 | -10/Materials | Discovered new exit (range 14) 630 | -10/Materials | Entered another Materials area 630 | -9/Materials | Evolved 2 slots: Utility x2 957 | -9/Materials | Destroyed 7 combat bots 1210 | -9/Materials | Discovered new exit (range 14) 1472 | -9/Materials | Discovered new exit (range 16) 1760 | -9/Materials | Entered another Materials area 1760 | -8/Materials | Evolved 2 slots: Propulsion x1, Weapon x1 1892 | -8/Materials | Core integrity fell below 50% 1936 | -8/Materials | Core integrity fell below 20% 1946 | -8/Materials | Lost 12 parts (2p4n3u3w) 1969 | -8/Materials | Destroyed by G-47 Trooper with Particle Gun Last Messages --------------- 01928_ Connecting with Scanalyzer... >>Study(Flight Unit) Identified Flight Unit... Downloading performance data... Effective improvements: +1 support 01929_ Acquired Imp. Datajack. 01931_ Acquired Hpw. Tractor Beam. 01934_ Connecting with Scanalyzer... >>Study(Imp. Datajack) Identified Imp. Datajack... Downloading performance data... Effective improvements: +10% accuracy 01938_ Dropped Flight Unit+. 01944_ ,|QC>MBELA&CTJVNFUHHB NN K>ZY 01949_ Jacked G-47 Trooper... >>parse_system Reading system data... 01951_ Lgt. Armor Plating destroyed. Map ----- +----------------------------------------------------+ | ?????????????????????????????????????????????????? | | ?????????????????????????????????????????????????? | | ????#######??????????????????????????????????????? | | ##### #??????????????????????????????????????? | | #??????????????????????????????????????? | | T #??????????????????????????????????????? | | #??????????????????????????????????????? | | ##### #??????????????????????????????????????? | | ###### ##???####???????????????????????????????? | | # #?? ????????????????????????????????? | | ""!=#" # """ ""????????????????????????????????? | | G =%" + """ ""????????????????????????????????? | | ="" %#" # """ ""????????????????????????????????? | | % ! # "#?? ????????????????????????????????? | | ""= *# "%#???? = ??????????????????????????????? | | "" *%# "#??????###??????????????????????????????? | | "" ! # #???????????????????????????????????????? | | # #???????????????????????????????????????? | | ###### #???????????????????????????????????????? | | ?????# #???????????????????????????????????????? | | ?????# #???????????????????????????????????????? | | ????## ##??????????????????????????????????????? | | ????# ######################?????????????????? | | ????# b g g #?????????????????? | | ????# glgY +?????????????????? | | ????# m glg @ #?????????????????? | | ????# ###"######;######### #?????????????????? | | ????###+###?# # ??????????????????????????? | | ????? ??# # """????????????????????????? | | ??? # # """ ??????????????????????? | | ?# # "" # """ #????????????????????? | | ?## # S"" # #????????????????????? | | ??# # ""==# """ ??#????????????????????? | | ??# ######/# """ ???????????????????????? | | ??#[! #????# # """????????????????????????? | | ??#[! #????# # ?????????????????????????? | | ??###########????# ####??????????????????????????? | | ?????????????????# #?????????????????????????????? | | ?????????????????# #?????????????????????????????? | | ?????????????????# #?????????????????????????????? | | ?????????????????# #?????????????????????????????? | | ????????????????? ?????????????????????????????? | | ????????????????? !?????????????????????????????? | | ????????????????? ?????????????????????????????? | | ????????????????? ?????????????????????????????? | | ????????????????? ?????????????????????????????? | | ?????????????????#+#?????????????????????????????? | | ?????????????????????????????????????????????????? | | ?????????????????????????????????????????????????? | | ?????????????????????????????????????????????????? | +----------------------------------------------------+ Best States ------------- Heat Dissipation 53 Energy Generation 14 Energy Capacity 450 Matter Stores 300 Matter Capacity 300 Sight Range 16 Terrain Scan Density 10 Additional Mass Support 6 Armor Coverage 600 Evasion (%) 62 Recoil Reduction 2 Item Schematics ----------------- Heat Sink | -9/Materials | Scanalyzed Lrg. Battery | -9/Materials | Scanalyzed Robot Schematics ------------------ None Fabricated ------------ Nothing Repaired ---------- Nothing Studied --------- Imp. Hover Unit | -9/Materials | Hacked Lgt. Ion Engine | -9/Materials | Hacked Imp. Ion Engine | -9/Materials | Hacked Rocket Launcher | -9/Materials | Hacked Hvy. Assault Rifle | -9/Materials | Hacked Arm. Wheel | -9/Materials | Hacked EM Shotgun | -9/Materials | Hacked Arm. Treads | -9/Materials | Hacked Flight Unit | -8/Materials | Hacked Imp. Datajack | -8/Materials | Hacked Alien Tech Used ----------------- None Achievements -------------- None Challenges ------------ None Game ------ Seed ZioniteCatalystLaser Manual? 0 Play Time 00:33:50 Cumulative 96.7 hours Start 2026.09.10 @ 02:13:11 End 2026.09.10 @ 02:46:49 Sessions 1 Manual Loads 0 Difficulty Rogue Special Mode None Game No. 156 Rogue 156 Adventurer 0 Explorer 0 Win Type - Total 0 Types 0/0/0/0/0/0/0/0/0/0 Lore% 28 Gallery% 38 Achievement% 31 Wizard Run 0 Options --------- Layout 1 ASCII 0 Keyboard 0 Movement Mouse Keybinds 0 Fullscreen 1 Font 16/Cog Map View 50x40 Zoom Use 0% Tactical HUD 1 Map Filters NONE Filters NONE Steam 1 RUN: 1ce6a937-dd09-4611-8b79-09d68835d5ee